bitfinex/quotes_BTCUSD_20250127
["timestamp","ask_amount","ask_price","bid_price","bid_amount"]
[1737942564117,0.43392225,101600.0,101590.0,0.0001416]
[1737942565375,0.44496225,101600.0,101590.0,0.0001416]
[1737942566782,0.54230954,101600.0,101590.0,0.0001416]
[1737942567465,0.44496225,101600.0,101590.0,0.0001416]
[1737942567687,0.54496225,101600.0,101590.0,0.0001416]
[1737942568125,0.44661496,101600.0,101590.0,0.00025168]
[1737942568355,0.30361496,101600.0,101590.0,0.00025168]
[1737942568555,0.19661496,101600.0,101590.0,0.00025168]
[1737942569117,0.29861496,101600.0,101590.0,0.00025168]
[1737942569775,0.29661496,101600.0,101590.0,0.00025168]
[1737942569989,0.30061496,101600.0,101590.0,0.00025168]
[1737942570187,0.30161496,101600.0,101590.0,0.00025168]
[1737942570392,0.30161496,101600.0,101590.0,0.0001416]
[1737942570610,0.30161496,101600.0,101590.0,0.00025168]
[1737942570814,0.30161496,101600.0,101590.0,0.0001416]
[1737942570932,0.30161496,101600.0,101590.0,0.00025168]
[1737942574447,0.19057496,101600.0,101590.0,0.00025168]
[1737942576499,0.171177,101600.0,101590.0,0.00025168]
[1737942577117,0.171177,101600.0,101590.0,0.14790368]
[1737942577349,0.171177,101600.0,101590.0,0.00025168]
[1737942577912,0.171177,101600.0,101590.0,0.14790368]
[1737942578113,0.171177,101600.0,101590.0,0.00025168]
[1737942578334,0.171177,101600.0,101590.0,0.24525097]
[1737942578504,0.02354,101600.0,101590.0,0.24525097]
[1737942578703,0.171177,101600.0,101590.0,0.24525097]
[1737942579067,0.171177,101600.0,101590.0,0.09759897]
[1737942579262,0.271177,101600.0,101590.0,0.00025168]
[1737942579816,0.171177,101600.0,101590.0,0.00025168]
[1737942580025,0.02354,101600.0,101590.0,0.24525097]
[1737942580234,0.171177,101600.0,101590.0,0.09759897]
[1737942580452,0.171177,101600.0,101590.0,0.24525097]
[1737942580679,0.02354,101600.0,101590.0,0.24525097]
[1737942580885,0.02354,101600.0,101590.0,1.21861397]
[1737942581543,0.02354,101600.0,101590.0,1.37334275]
[1737942581752,0.02354,101600.0,101590.0,1.35034275]
[1737942582200,0.02254,101600.0,101590.0,1.35034275]
[1737942582854,0.01854,101600.0,101590.0,1.35034275]
[1737942583117,0.01954,101600.0,101590.0,1.35034275]
[1737942583316,0.02054,101600.0,101590.0,1.35034275]
[1737942583543,0.01954,101600.0,101590.0,1.35034275]
[1737942585018,0.01954,101600.0,101590.0,0.48867975]
[1737942586759,0.01954,101600.0,101590.0,0.48856967]
[1737942587007,0.01854,101600.0,101590.0,0.48867975]
[1737942587218,0.01954,101600.0,101590.0,0.48867975]
[1737942588560,0.01954,101600.0,101590.0,0.68188247]
[1737942588984,0.01954,101600.0,101590.0,0.68627336]
[1737942590689,0.01954,101600.0,101590.0,2.41913636]
[1737942590899,0.01954,101600.0,101590.0,2.43913636]
[1737942591478,0.00029736,101630.0,101620.0,0.44581808]
[1737942591690,0.00044484,101630.0,101620.0,1.40482837]
[1737942591923,0.00044484,101630.0,101620.0,1.40934487]
[1737942592119,0.00044484,101630.0,101620.0,1.41934487]
[1737942593215,0.00044484,101630.0,101620.0,1.38623479]
[1737942593389,0.00044484,101630.0,101620.0,1.38634487]
[1737942593564,0.00144484,101630.0,101620.0,1.38634487]
[1737942595499,0.01998484,101630.0,101620.0,1.38634487]
[1737942595932,0.01898484,101630.0,101620.0,1.38634487]
[1737942596182,0.01898484,101630.0,101620.0,1.38834487]
[1737942596526,0.01898484,101630.0,101620.0,1.38634487]
[1737942596721,0.01998484,101630.0,101620.0,1.39334487]
[1737942599863,0.01998484,101630.0,101620.0,1.42634487]
[1737942600067,0.01998484,101630.0,101620.0,1.53804759]
[1737942600247,0.01998484,101630.0,101620.0,1.42634487]
[1737942600448,0.01998484,101630.0,101620.0,1.41623479]
[1737942600648,0.01998484,101630.0,101620.0,1.42634487]
[1737942600853,0.01998484,101630.0,101620.0,1.39334487]
[1737942601977,0.01998484,101630.0,101620.0,1.42634487]
[1737942602183,0.01998484,101630.0,101620.0,1.53804759]
[1737942602310,0.01998484,101630.0,101620.0,1.42634487]
[1737942602531,0.01998484,101630.0,101620.0,1.41634487]
[1737942603151,0.01998484,101630.0,101620.0,1.43101247]
[1737942603720,0.01998484,101630.0,101620.0,1.28291247]
[1737942604264,0.01998484,101630.0,101620.0,1.26824487]
[1737942604676,0.01998484,101630.0,101620.0,1.26813479]
[1737942604876,0.01998484,101630.0,101620.0,1.26824487]
[1737942605085,0.01998484,101630.0,101620.0,1.11824487]
[1737942609652,0.01998484,101630.0,101620.0,1.29124487]
[1737942609818,0.01998484,101630.0,101620.0,1.34044487]
[1737942610554,0.01998484,101630.0,101620.0,1.43233695]
[1737942611236,0.01998484,101630.0,101620.0,1.40933695]
[1737942611744,0.01998484,101630.0,101620.0,1.4082196]
[1737942613571,0.01998484,101630.0,101620.0,1.4312196]
[1737942614727,0.01998484,101630.0,101620.0,0.5695566]
[1737942614978,0.01998484,101630.0,101620.0,0.69125932]
[1737942616725,0.01998484,101630.0,101620.0,0.5795566]
[1737942617655,0.01998484,101630.0,101620.0,0.4201566]
[1737942620255,0.01998484,101630.0,101620.0,0.4202981]
[1737942620589,0.01998484,101630.0,101620.0,1.2819611]
[1737942621478,0.01998484,101630.0,101620.0,1.1319611]
[1737942621618,0.10318484,101630.0,101620.0,1.13185102]
[1737942621802,0.25077884,101630.0,101620.0,1.13307845]
[1737942622003,0.10318484,101630.0,101620.0,1.13307845]
[1737942622217,0.01998484,101630.0,101620.0,1.13307845]
[1737942622428,0.01998484,101630.0,101620.0,1.15607845]
[1737942622968,0.01998484,101630.0,101620.0,1.30607845]
[1737942625005,0.01998484,101630.0,101620.0,1.29138637]
[1737942625670,0.01498484,101630.0,101620.0,1.29138637]
[1737942627639,0.01498484,101630.0,101620.0,1.11838637]
[1737942627863,0.24577884,101630.0,101620.0,0.33183108]
[1737942628067,0.46265072,101630.0,101620.0,0.331721]
[1737942628274,0.30477884,101630.0,101620.0,0.3272045]
[1737942628387,0.55212613,101630.0,101620.0,0.0071415]
[1737942628590,0.55212613,101630.0,101620.0,0.0051415]
[1737942629060,0.55212613,101630.0,101620.0,0.0061415]
[1737942629264,0.55112613,101630.0,101620.0,0.0011415]
[1737942629471,0.55212613,101630.0,101620.0,0.0001415]
[1737942629672,0.57143165,101630.0,101620.0,0.0001415]
[1737942629899,0.57408436,101630.0,101620.0,0.0001415]
[1737942630252,0.58182053,101630.0,101620.0,0.0001415]
[1737942630599,0.48182053,101630.0,101620.0,0.0001415]
[1737942632315,0.57916782,101630.0,101620.0,0.0001415]
[1737942632541,0.56476089,101630.0,101600.0,0.0001416]
[1737942632741,0.378837,101600.0,101590.0,0.0001416]
[1737942632943,0.37618429,101600.0,101590.0,0.0001416]
[1737942635109,0.37718429,101600.0,101590.0,0.0001416]
[1737942638010,0.39572429,101600.0,101590.0,0.0001416]
[1737942638429,0.41537299,101600.0,101590.0,0.0001416]
[1737942638839,0.42478799,101600.0,101590.0,0.0001416]
[1737942639213,0.42469099,101600.0,101590.0,0.0001416]
[1737942639606,0.43247676,101600.0,101590.0,0.0001416]
[1737942640210,0.44347676,101600.0,101590.0,0.0001416]
[1737942640857,0.44612947,101600.0,101590.0,0.0001416]
[1737942641058,0.43671447,101600.0,101590.0,0.0001416]
[1737942642624,0.42571447,101600.0,101590.0,0.00025168]
[1737942642861,0.43671447,101600.0,101590.0,0.00025168]
[1737942644037,0.35806577,101600.0,101590.0,0.00025168]
[1737942644257,0.17486577,101600.0,101590.0,0.00025168]
[1737942644463,0.17386577,101600.0,101590.0,0.09759897]
[1737942644645,0.17786577,101600.0,101590.0,0.09759897]
[1737942645069,0.17786577,101600.0,101590.0,0.24525097]
[1737942645277,0.02354,101600.0,101590.0,0.24525097]
[1737942645483,0.167177,101600.0,101590.0,0.24525097]
[1737942645685,0.01954,101600.0,101590.0,0.24525097]
[1737942646097,0.01854,101600.0,101590.0,0.24525097]
[1737942646330,0.01954,101600.0,101590.0,0.24525097]
[1737942646756,0.01954,101600.0,101590.0,0.24625097]
[1737942646969,0.01954,101600.0,101590.0,0.41925097]
[1737942647178,0.01954,101600.0,101590.0,0.61285369]
[1737942647386,0.01954,101600.0,101590.0,0.67105369]
[1737942647839,0.00029715,101630.0,101620.0,0.27781808]
[1737942648058,0.00029715,101630.0,101620.0,0.39816537]
[1737942649225,0.00129715,101630.0,101620.0,0.55416537]
[1737942649406,0.00129715,101630.0,101620.0,0.55716537]
[1737942649615,0.00029715,101630.0,101620.0,1.53453109]
[1737942649815,0.00029715,101630.0,101620.0,1.53153109]
[1737942650898,0.00129715,101630.0,101620.0,1.55653109]
[1737942651335,0.08726356,101660.0,101650.0,0.42267508]
[1737942651480,0.08726356,101660.0,101650.0,1.40468537]
[1737942652125,0.00029715,101670.0,101660.0,0.17311008]
[1737942652470,0.00044315,101670.0,101660.0,0.41899078]
[1737942652675,0.00044315,101670.0,101660.0,0.41800737]
[1737942652876,0.00044315,101670.0,101660.0,0.39500737]
[1737942653070,0.14797915,101670.0,101660.0,0.39500737]
[1737942653214,0.00044315,101670.0,101660.0,0.39500737]
[1737942653418,0.00044315,101670.0,101660.0,0.41800737]
[1737942654430,0.00044315,101670.0,101660.0,1.27967037]
[1737942657959,0.00044315,101670.0,101660.0,1.28467037]
[1737942659385,0.01898315,101670.0,101660.0,1.28467037]
[1737942662328,0.16651915,101670.0,101660.0,1.26167037]
[1737942662503,0.01898315,101670.0,101660.0,1.26167037]
[1737942666822,0.01898315,101670.0,101660.0,1.28467037]
[1737942667588,0.01898315,101670.0,101660.0,1.28456029]
[1737942667791,0.01898315,101670.0,101660.0,1.28467037]
[1737942669271,0.01898315,101670.0,101660.0,1.28067037]
[1737942670072,0.01898315,101670.0,101660.0,1.25667037]
[1737942670684,0.01898315,101670.0,101660.0,1.25767037]
[1737942671221,0.01898315,101670.0,101660.0,1.25667037]
[1737942671418,0.01898315,101670.0,101660.0,1.25767037]
[1737942672627,0.01898315,101670.0,101660.0,1.28067037]
[1737942672830,0.01898315,101670.0,101660.0,1.36117037]
[1737942673087,0.01898315,101670.0,101660.0,1.47287309]
[1737942673438,0.01898315,101670.0,101660.0,1.36117037]
[1737942674245,0.01898315,101670.0,101660.0,1.36017037]
[1737942674458,0.01898315,101670.0,101660.0,1.36417037]
[1737942674995,0.01898315,101670.0,101660.0,1.36517037]
[1737942676064,0.01898315,101670.0,101660.0,1.50687309]
[1737942676298,0.01898315,101670.0,101660.0,1.55467309]
[1737942676683,0.01898315,101670.0,101660.0,1.53467309]
[1737942676894,0.01898315,101670.0,101660.0,1.55367309]
[1737942677094,0.01898315,101670.0,101660.0,2.42487309]
[1737942677324,0.01898315,101670.0,101660.0,2.42587309]
[1737942677533,1.5e-07,101670.0,101660.0,2.42587309]
[1737942677713,0.00029758,101680.0,101670.0,0.47794608]
[1737942677911,0.00039487,101680.0,101670.0,0.68699609]
[1737942678142,0.00039487,101680.0,101670.0,0.79869881]
[1737942678316,8.7e-07,101680.0,101670.0,0.79869881]
[1737942678460,0.00029736,101710.0,101700.0,0.47370208]
[1737942678662,0.01056164,101730.0,101720.0,0.32757308]
[1737942678910,1e-06,101740.0,101730.0,0.35055908]
[1737942679086,0.01540313,101750.0,101740.0,0.20054408]
[1737942679289,1.3e-07,101750.0,101740.0,2.38543161]
[1737942679488,0.08756114,101760.0,101750.0,0.35053008]
[1737942679692,0.08756114,101760.0,101750.0,0.41787737]
[1737942680133,0.08756114,101760.0,101750.0,0.41776729]
[1737942680271,0.08756114,101760.0,101750.0,0.41787737]
[1737942680489,0.00029758,101760.0,101750.0,0.41787737]
[1737942680936,0.00029758,101760.0,101750.0,0.42687737]
[1737942681135,0.14770258,101760.0,101750.0,1.11543029]
[1737942681357,0.14770258,101760.0,101750.0,0.96212037]
[1737942681564,0.00029758,101760.0,101750.0,1.11754037]
[1737942682761,0.00029758,101760.0,101750.0,1.11454037]
[1737942683000,0.00129758,101760.0,101750.0,1.11454037]
[1737942683402,0.00129758,101760.0,101750.0,1.10654037]
[1737942683598,0.00029758,101760.0,101750.0,1.10654037]
[1737942684369,0.00029758,101760.0,101750.0,1.10954037]
[1737942685084,0.00029758,101760.0,101750.0,1.10654037]
[1737942685290,0.14770258,101760.0,101750.0,1.10654037]
[1737942685722,0.00029758,101760.0,101750.0,0.95912037]
[1737942685953,0.14770258,101760.0,101750.0,0.95912037]
[1737942686522,0.16624258,101760.0,101750.0,1.10654037]
[1737942686719,0.16624258,101760.0,101750.0,0.95912037]
[1737942686935,0.01883758,101760.0,101750.0,1.10654037]
[1737942687134,0.01883758,101760.0,101750.0,1.27954037]
[1737942687551,0.01883758,101760.0,101750.0,1.27943029]
[1737942688235,0.01883758,101760.0,101750.0,1.28254037]
[1737942689331,0.01883758,101760.0,101750.0,1.32964037]
[1737942689953,0.01883758,101760.0,101750.0,0.65606307]
[1737942690345,0.01883758,101760.0,101750.0,0.69004559]
[1737942690549,0.01883758,101760.0,101750.0,0.71428633]
[1737942691582,0.01883758,101760.0,101750.0,0.70117625]
[1737942691784,0.01883758,101760.0,101750.0,0.46597737]
[1737942692286,0.01883758,101760.0,101750.0,0.43887737]
[1737942692719,0.01883758,101760.0,101750.0,0.43787737]
[1737942692916,0.01883758,101760.0,101750.0,0.44287737]
[1737942693058,0.01883758,101760.0,101750.0,0.45187737]
[1737942693258,0.01883758,101760.0,101750.0,0.44287737]
[1737942693566,0.01883758,101760.0,101750.0,0.43787737]
[1737942693795,0.01883758,101760.0,101750.0,0.45087737]
[1737942694673,0.01883758,101760.0,101750.0,0.61796307]
[1737942695725,0.01883758,101760.0,101750.0,0.45087737]
[1737942695957,0.01883758,101760.0,101750.0,0.43087737]
[1737942696408,0.01883758,101760.0,101750.0,1.29254037]
[1737942698757,0.01883758,101760.0,101750.0,1.45962607]
[1737942698995,0.01883758,101760.0,101750.0,1.47962607]
[1737942699414,0.01883758,101760.0,101750.0,1.31254037]
[1737942700005,0.01883758,101760.0,101750.0,1.51549493]
[1737942700465,0.01883758,101760.0,101750.0,0.61796307]
[1737942700613,0.01883758,101760.0,101750.0,0.61785299]
[1737942700835,0.01883758,101760.0,101750.0,0.43087737]
[1737942701198,0.01883758,101760.0,101750.0,0.40787737]
[1737942701641,0.01883758,101760.0,101750.0,1.11954037]
[1737942701642,0.16624258,101760.0,101750.0,1.11954037]
[1737942701854,0.26624258,101760.0,101750.0,0.97212037]
[1737942702701,0.26624258,101760.0,101750.0,0.96812037]
[1737942703117,0.26624258,101760.0,101750.0,0.95912037]
[1737942703327,0.26624258,101760.0,101750.0,0.95941731]
[1737942704094,0.27465022,101760.0,101750.0,0.95941731]
[1737942704491,0.02724522,101760.0,101750.0,1.12983731]
[1737942704702,0.01883758,101760.0,101750.0,1.12983731]
[1737942705104,0.01883758,101760.0,101750.0,1.27983731]
[1737942706164,0.01883758,101760.0,101750.0,0.58526001]
[1737942706459,0.01883758,101760.0,101750.0,0.41817431]
[1737942706673,0.01883758,101760.0,101750.0,0.41917431]
[1737942707099,0.01883758,101760.0,101750.0,0.58626001]
[1737942707299,0.01883758,101760.0,101750.0,0.58526001]
[1737942707628,0.01883758,101760.0,101750.0,0.42217431]
[1737942707975,0.01883758,101760.0,101750.0,0.42517431]
[1737942708179,0.01883758,101760.0,101750.0,0.42217431]
[1737942708817,0.01883758,101760.0,101750.0,0.41817431]
[1737942709248,0.01883758,101760.0,101750.0,0.41917431]
[1737942709624,0.01883758,101760.0,101750.0,0.59126001]
[1737942709795,0.01883758,101760.0,101750.0,0.42417431]
[1737942710001,0.01883758,101760.0,101750.0,0.41917431]
[1737942710200,0.01883758,101760.0,101750.0,0.42217431]
[1737942712184,0.01883758,101760.0,101750.0,0.60926001]
[1737942712384,0.01883758,101760.0,101750.0,0.63985792]
[1737942713370,0.01883758,101760.0,101750.0,0.63885792]
[1737942713572,0.01883758,101760.0,101750.0,0.46877222]
[1737942713770,0.01883758,101760.0,101750.0,0.47077222]
[1737942713998,0.01883758,101760.0,101750.0,0.47877222]
[1737942715827,0.01883758,101760.0,101750.0,1.34043522]
[1737942716702,0.01883758,101760.0,101750.0,1.32043522]
[1737942716907,0.01883758,101760.0,101750.0,1.32032514]
[1737942717102,0.01883758,101760.0,101750.0,1.28983731]
[1737942718624,0.01883758,101760.0,101750.0,1.32046294]
[1737942719181,0.01883758,101760.0,101750.0,1.29746294]
[1737942719388,0.01883758,101760.0,101750.0,1.26683731]
[1737942721233,0.16624258,101760.0,101750.0,1.26683731]
[1737942721475,0.01883758,101760.0,101750.0,1.26683731]
[1737942724051,0.01856172,101760.0,101750.0,1.26683731]
[1737942725076,0.01856172,101760.0,101750.0,1.40121997]
[1737942725254,0.01856172,101760.0,101750.0,1.33512835]
[1737942725461,0.01856172,101760.0,101750.0,1.3045144]
[1737942726020,0.01856172,101760.0,101750.0,1.2815144]
[1737942726354,0.16596672,101760.0,101750.0,0.96930723]
[1737942726543,0.24926672,101760.0,101750.0,0.96941731]
[1737942726966,0.24926672,101760.0,101750.0,0.96930723]
[1737942727178,0.24926672,101760.0,101750.0,0.96130723]
[1737942727547,0.24926672,101760.0,101750.0,0.32535994]
[1737942727752,0.29706672,101760.0,101750.0,0.32535994]
[1737942727950,0.39706672,101760.0,101750.0,0.32535994]
[1737942728543,0.39706672,101760.0,101750.0,0.32335994]
[1737942729822,0.39806672,101760.0,101750.0,0.32035994]
[1737942730032,0.15066172,101760.0,101750.0,0.56523731]
[1737942730241,0.01690001,101760.0,101750.0,1.10683731]
[1737942731176,0.16430501,101760.0,101750.0,1.10683731]
[1737942731404,0.01690001,101760.0,101750.0,1.10683731]
[1737942731856,0.39440501,101760.0,101750.0,0.95930723]
[1737942732033,0.39540501,101760.0,101750.0,0.95930723]
[1737942732239,0.29540501,101760.0,101750.0,1.10683731]
[1737942732780,0.29440501,101760.0,101750.0,1.10683731]
[1737942732986,0.39540501,101760.0,101750.0,0.95930723]
[1737942734397,0.29540501,101760.0,101750.0,0.95930723]
[1737942735010,0.39540501,101760.0,101750.0,0.95930723]
[1737942735331,0.29540501,101760.0,101750.0,0.95930723]
[1737942736242,0.39540501,101760.0,101750.0,0.95930723]
[1737942736849,0.39554661,101760.0,101750.0,0.95930723]
[1737942737013,0.15703973,101760.0,101750.0,1.10683731]
[1737942737216,0.10034161,101760.0,101750.0,1.10683731]
[1737942738058,0.01704161,101760.0,101750.0,1.10683731]
[1737942740108,0.01704161,101760.0,101750.0,1.27983731]
[1737942741763,0.01704161,101760.0,101750.0,1.10672723]
[1737942742017,0.24524661,101760.0,101750.0,1.10683731]
[1737942742245,0.24524661,101760.0,101750.0,0.95930723]
[1737942742851,0.34524661,101760.0,101750.0,0.95930723]
[1737942743885,0.24524661,101760.0,101750.0,0.95930723]
[1737942744086,0.09154101,101760.0,101750.0,1.10683731]
[1737942744288,0.30456334,101770.0,101760.0,0.14751508]
[1737942744289,0.13796034,101770.0,101760.0,0.14751508]
[1737942744492,0.13796034,101770.0,101760.0,1.10652537]
[1737942744896,0.08836034,101770.0,101760.0,1.10652537]
[1737942745101,0.00756034,101770.0,101760.0,1.10652537]
[1737942745752,0.00756034,101770.0,101760.0,1.25652537]
[1737942747536,0.00756034,101770.0,101760.0,1.25952537]
[1737942748429,0.00756034,101770.0,101760.0,1.28252537]
[1737942748628,0.00756034,101770.0,101760.0,1.28352537]
[1737942750041,0.00756034,101770.0,101760.0,1.45061677]
[1737942750275,0.00756034,101770.0,101760.0,1.53371677]
[1737942750481,0.00756034,101770.0,101760.0,1.36662537]
[1737942751131,0.00756034,101770.0,101760.0,1.28252537]
[1737942751320,0.00756034,101770.0,101760.0,1.25652537]
[1737942751627,0.02610034,101770.0,101760.0,1.25852537]
[1737942752203,0.02610034,101770.0,101760.0,1.25652537]
[1737942752845,0.02610034,101770.0,101760.0,1.26452537]
[1737942754119,0.02610034,101770.0,101760.0,1.26552537]
[1737942754541,0.02610034,101770.0,101760.0,1.26452537]
[1737942754961,0.02610034,101770.0,101760.0,1.11652537]
[1737942755155,0.17349134,101770.0,101760.0,0.96901029]
[1737942755350,0.17349134,101770.0,101760.0,0.871663]
[1737942755351,0.29589134,101770.0,101760.0,0.871663]
[1737942755551,0.39589134,101770.0,101760.0,0.871663]
[1737942756438,0.39589134,101770.0,101760.0,0.863663]
[1737942756842,0.39589134,101770.0,101760.0,0.866663]
[1737942757450,0.39589134,101770.0,101760.0,0.864663]
[1737942758386,0.40491836,101770.0,101760.0,0.864663]
[1737942758583,0.30491836,101770.0,101760.0,0.864663]
[1737942759511,0.15752736,101770.0,101760.0,1.10941529]
[1737942759706,0.15752736,101770.0,101760.0,1.10952537]
[1737942759707,0.02610034,101770.0,101760.0,1.10952537]
[1737942760127,0.02610034,101770.0,101760.0,1.10966697]
[1737942761045,0.02610034,101770.0,101760.0,1.11066697]
[1737942761287,0.02610034,101770.0,101760.0,1.10766697]
[1737942761490,0.02610034,101770.0,101760.0,1.11266697]
[1737942762362,0.02610034,101770.0,101760.0,1.11166697]
[1737942762794,0.02610034,101770.0,101760.0,1.10666697]
[1737942763140,0.02610034,101770.0,101760.0,1.10966697]
[1737942766470,0.02610034,101770.0,101760.0,2.44816432]
[1737942767194,0.02610034,101770.0,101760.0,2.28106697]
[1737942767395,0.02610034,101770.0,101760.0,2.27806697]
[1737942767758,0.02610034,101770.0,101760.0,2.28706697]
[1737942767961,0.02610034,101770.0,101760.0,2.29006697]
[1737942768385,0.02610034,101770.0,101760.0,2.28706697]
[1737942768781,0.02610034,101770.0,101760.0,2.29106697]
[1737942769147,0.02610034,101770.0,101760.0,2.28206697]
[1737942769510,0.02610034,101770.0,101760.0,2.29106697]
[1737942772949,0.02610034,101770.0,101760.0,2.31050042]
[1737942774801,0.02610034,101770.0,101760.0,2.16386697]
[1737942775006,0.02610034,101770.0,101760.0,2.14086697]
[1737942778246,0.02610034,101770.0,101760.0,1.26966697]
[1737942780612,0.02610034,101770.0,101760.0,1.11966697]
[1737942780820,0.24999134,101770.0,101760.0,1.11955689]
[1737942781461,0.24999134,101770.0,101760.0,0.8748046]
[1737942781462,0.34999134,101770.0,101760.0,0.8748046]
[1737942781631,0.39789134,101770.0,101760.0,0.8708046]
[1737942782721,0.39789134,101770.0,101760.0,0.8618046]
[1737942782980,0.39789134,101770.0,101760.0,0.8648046]
[1737942784180,0.29789134,101770.0,101760.0,0.8648046]
[1737942785388,0.39789134,101770.0,101760.0,0.8648046]
[1737942786710,0.39789134,101770.0,101760.0,0.8618046]
[1737942787047,0.39889134,101770.0,101760.0,0.8618046]
[1737942787247,0.40788904,101770.0,101760.0,0.8618046]
[1737942787899,0.40988904,101770.0,101760.0,0.8618046]
[1737942788931,0.40988904,101770.0,101760.0,1.0092096]
[1737942789112,0.10560034,101770.0,101760.0,1.10655689]
[1737942789293,0.25299134,101770.0,101760.0,1.10655689]
[1737942790053,0.10560034,101770.0,101760.0,1.10655689]
[1737942790721,0.25099134,101770.0,101760.0,1.10655689]
[1737942791007,0.10460034,101770.0,101760.0,1.10655689]
[1737942791504,0.02810034,101770.0,101760.0,1.10666697]
[1737942792555,0.02810034,101770.0,101760.0,1.25666697]
[1737942793579,0.02810034,101770.0,101760.0,1.47331381]
[1737942793823,0.02810034,101770.0,101760.0,1.33896697]
[1737942794028,0.02810034,101770.0,101760.0,1.25666697]
[1737942802086,0.02810034,101770.0,101760.0,0.95915189]
[1737942802285,0.10510034,101770.0,101760.0,1.10655689]
[1737942802735,0.25249134,101770.0,101760.0,1.10655689]
[1737942803328,0.10510034,101770.0,101760.0,1.10655689]
[1737942805285,0.02810034,101770.0,101760.0,1.25666697]
[1737942809303,0.02810034,101770.0,101760.0,1.27966697]
[1737942811287,0.02810034,101770.0,101760.0,1.25666697]
[1737942812484,0.02810034,101770.0,101760.0,1.25655689]
[1737942812898,0.17549134,101770.0,101760.0,1.25655689]
[1737942813308,0.17549134,101770.0,101760.0,1.25666697]
[1737942813518,0.17549134,101770.0,101760.0,1.10915189]
[1737942813720,0.17549134,101770.0,101760.0,1.25655689]
[1737942814154,0.25549134,101770.0,101760.0,1.10655689]
[1737942815260,0.10810034,101770.0,101760.0,1.10655689]
[1737942815465,0.25549134,101770.0,101760.0,1.10655689]
[1737942816585,0.10810034,101770.0,101760.0,1.10655689]
[1737942816898,0.25549134,101770.0,101760.0,1.10655689]
[1737942817098,0.25544265,101770.0,101760.0,1.10655689]
[1737942817703,0.25544265,101770.0,101760.0,0.8618046]
[1737942817934,0.30374265,101770.0,101760.0,0.8618046]
[1737942818352,0.40374265,101770.0,101760.0,0.8618046]
[1737942819555,0.35549205,101770.0,101760.0,1.10655689]
[1737942819909,0.20810105,101770.0,101760.0,1.10655689]
[1737942820112,0.10810105,101770.0,101760.0,1.10655689]
[1737942820337,0.02810105,101770.0,101760.0,1.10655689]
[1737942820711,0.17549205,101770.0,101760.0,1.10655689]
[1737942820940,0.02810105,101770.0,101760.0,1.10655689]
[1737942821287,0.02810105,101770.0,101760.0,1.10666697]
[1737942822194,0.02810105,101770.0,101760.0,1.51631381]
[1737942824988,0.02810105,101770.0,101760.0,1.51620373]
[1737942825189,0.02810105,101770.0,101760.0,1.51631381]
[1737942825389,0.02810105,101770.0,101760.0,1.51620373]
[1737942825628,0.02810105,101770.0,101760.0,1.40496697]
[1737942826649,0.02810105,101770.0,101760.0,1.51631381]
[1737942826865,0.02810105,101770.0,101760.0,1.52563773]
[1737942828215,0.02810105,101770.0,101760.0,2.42735066]
[1737942828617,0.02710105,101770.0,101760.0,2.42735066]
[1737942828846,0.02610105,101770.0,101760.0,2.42735066]
[1737942829042,0.02610105,101770.0,101760.0,2.43035066]
[1737942829245,0.02610105,101770.0,101760.0,2.42735066]
[1737942829677,0.02610105,101770.0,101760.0,2.43635066]
[1737942830078,0.02610105,101770.0,101760.0,2.40583773]
[1737942830458,0.02610105,101770.0,101760.0,2.43633397]
[1737942830672,0.02610105,101770.0,101760.0,2.44033397]
[1737942831271,5e-08,101770.0,101760.0,2.57168081]
[1737942831555,6.3e-07,101780.0,101770.0,0.78416408]
[1737942831739,6.3e-07,101780.0,101770.0,0.99285821]
[1737942832114,6.3e-07,101780.0,101770.0,1.02335445]
[1737942832922,6.3e-07,101780.0,101770.0,1.03335445]
[1737942833174,2.1e-07,101790.0,101780.0,0.320376]
[1737942833384,4.959e-05,101790.0,101780.0,0.63716637]
[1737942833514,4.959e-05,101790.0,101780.0,0.68316637]
[1737942834667,4.959e-05,101790.0,101780.0,2.41602937]
[1737942835099,4.959e-05,101790.0,101780.0,2.41613945]
[1737942835861,4.959e-05,101790.0,101780.0,2.42513945]
[1737942836089,4.959e-05,101790.0,101780.0,2.42813945]
[1737942836541,4.959e-05,101790.0,101780.0,2.39764321]
[1737942837155,4.959e-05,101790.0,101780.0,2.44800736]
[1737942837446,4.959e-05,101790.0,101780.0,2.41764321]
[1737942837869,4.959e-05,101790.0,101780.0,2.42669224]
[1737942838460,0.01858959,101790.0,101780.0,2.42669224]
[1737942839283,0.01858959,101790.0,101780.0,2.44591362]
[1737942839923,0.01858959,101790.0,101780.0,2.42591362]
[1737942840344,0.01858959,101790.0,101780.0,2.40291362]
[1737942840590,0.01858959,101790.0,101780.0,1.29676678]
[1737942840860,0.01858959,101790.0,101780.0,1.2775454]
[1737942841113,0.09378959,101790.0,101780.0,1.26849637]
[1737942842072,0.09378959,101790.0,101780.0,1.25649637]
[1737942842329,0.24115159,101790.0,101780.0,1.26638629]
[1737942842554,0.09378959,101790.0,101780.0,1.26638629]
[1737942842792,0.24115159,101790.0,101780.0,1.11638629]
[1737942843044,0.24115159,101790.0,101780.0,0.96901029]
[1737942843528,0.34115159,101790.0,101780.0,0.330063]
[1737942843739,0.40024151,101790.0,101780.0,0.330063]
[1737942843948,0.55024151,101790.0,101780.0,0.328063]
[1737942844151,0.6475888,101790.0,101780.0,0.328063]
[1737942844776,0.6475888,101790.0,101780.0,0.320063]
[1737942844985,0.63769888,101790.0,101780.0,0.241963]
[1737942845192,0.70758341,101790.0,101780.0,0.163863]
[1737942845410,0.67708341,101790.0,101780.0,0.085763]
[1737942845616,0.66397333,101790.0,101780.0,0.085763]
[1737942845829,0.6370888,101790.0,101780.0,0.085763]
[1737942846003,0.6200888,101790.0,101780.0,0.085763]
[1737942846213,0.6400888,101790.0,101780.0,0.085763]
[1737942846427,0.6200888,101790.0,101780.0,0.085763]
[1737942846641,0.6170888,101790.0,101780.0,0.085763]
[1737942846816,0.62654861,101790.0,101780.0,0.085763]
[1737942847229,0.62954861,101790.0,101780.0,0.085763]
[1737942848270,0.65254861,101790.0,101780.0,0.085763]
[1737942848518,0.196576,101780.0,101770.0,0.5416]
[1737942848729,0.29392329,101780.0,101770.0,0.5416]
[1737942848898,0.31246329,101780.0,101770.0,0.5416]
[1737942849458,0.25728092,101770.0,101760.0,0.0001416]
[1737942852305,0.265931,101770.0,101760.0,0.0001416]
[1737942852474,0.27582092,101770.0,101760.0,0.0001416]
[1737942853448,0.27782092,101770.0,101760.0,0.0001416]
[1737942854058,0.267931,101770.0,101760.0,0.0001416]
[1737942854269,0.167931,101770.0,101760.0,0.0001416]
[1737942855251,0.165931,101770.0,101760.0,0.0001416]
[1737942855457,0.167931,101770.0,101760.0,0.3205416]
[1737942855658,0.165931,101770.0,101760.0,0.3205416]
[1737942857479,0.17504606,101770.0,101760.0,0.3205416]
[1737942860446,0.27504606,101770.0,101760.0,0.3205416]
[1737942863651,0.17504606,101770.0,101760.0,0.3205416]
[1737942864641,0.165931,101770.0,101760.0,0.3205416]
[1737942865248,0.165931,101770.0,101760.0,0.4679466]
[1737942865410,0.165931,101770.0,101760.0,0.3205416]